Cogmind - Beta 17 @@@ ROGUE MODE // 2026.07.26 @ 16:18:31 Player: Lazz Result: Destroyed by EX-DEC with AWS/EX-DEC Performance ------------- Evolutions (1) 500 Regions Visited (5) 1000 Robots Destroyed (13) 65 Value Destroyed (300) 300 Prototype IDs (26) 520 Alien Tech Used (0) 0 Bonus (228) 228 TOTAL SCORE: 2613 Bonus ------- Aligned with FarCom 300 Friendly Fire -72 Cogmind --------- Core Integrity 0/400 Matter 209/300 Energy 137/290 System Corruption 2% Temperature Cool (0) Movement Walking (480) Ox5 Location -9/Exiles Parts ------- > --- POWER (1) -------- Improved Deuterium Engine > --- PROPULSION (3) --- Titanium Leg > --- UTILITY (2) ------ Large Storage Unit Improved Shield Generator > --- WEAPON (3) ------- AWS/Autocannon > --- INVENTORY (15) --- Improved Deuterium Engine Cryofiber Web Improved Heat Sink Experimental Heat Sink Weapon Cycler Tractor Beam Mining Laser Peak State ------------ > --- POWER ------------ Improved Deuterium Engine > --- PROPULSION ------- Aluminum Leg Aluminum Leg Titanium Leg > --- UTILITY ---------- Large Storage Unit Improved Signal Interpreter > --- WEAPON ----------- AWS/Autocannon > --- INVENTORY -------- Improved Deuterium Engine Combat Airjet Cryofiber Web Improved Heat Sink Seismic Detector Targeting Computer Weapon Cycler Improved Shield Generator Tractor Beam AWS/Gauss Assault Cannon Rocket Launcher Mining Laser [Rating: 47] Favorites ----------- Power Improved Deuterium Engine Engine Improved Deuterium Engine Power Core Light Nuclear Core Propulsion Aluminum Leg Leg Aluminum Leg Utility Large Storage Unit Device Seismic Detector Storage Large Storage Unit Processor Improved Signal Interpreter Weapon Assault Rifle Energy Gun Medium Laser Ballistic Gun Assault Rifle Ballistic Cannon AWS/Autocannon Launcher Rocket Launcher Build | -11 -10 -10 -9 -9 -9 ------- Run | Yrd Mat Min Mat Min Exi Slots Evolved 2 | . . . 2 . . Power . | . . . . . . Propulsion 1 | . . . 1 . . Utility . | . . . . . . Weapon 1 | . . . 1 . . Parts Attached 29 | 7 3 4 4 2 9 Power 5 | 1 . 1 . 2 1 Engine 4 | 1 . . . 2 1 Core 1 | . . 1 . . . Reactor . | . . . . . . Propulsion 6 | 2 2 2 . . . Treads . | . . . . . . Leg 6 | 2 2 2 . . . Wheel . | . . . . . . Hover . | . . . . . . Flight . | . . . . . . Utility 8 | 2 1 . 1 . 4 Device 4 | 1 . . . . 3 Storage 2 | 1 1 . . . . Processor 2 | . . . 1 . 1 Hackware . | . . . . . . Protection . | . . . . . . Artifact . | . . . . . . Weapon 10 | 2 . 1 3 . 4 Energy Gun 4 | . . 1 3 . . Energy Cannon . | . . . . . . Ballistic Gun 3 | 2 . . . . 1 Ballistic Cannon 2 | . . . . . 2 Launcher 1 | . . . . . 1 Special Weapon . | . . . . . . Impact Weapon . | . . . . . . Slashing Weapon . | . . . . . . Piercing Weapon . | . . . . . . Special Melee Weapon . | . . . . . . Unidentified Prototypes 3 | . . . 1 . 2 Parts Lost 6 | . . 1 . 1 4 Power 1 | . . . . 1 . Propulsion 2 | . . . . . 2 Utility . | . . . . . . Weapon 3 | . . 1 . . 2 Highest Loss Streak 2 | . . 1 . 1 2 To Critical Strikes . | . . . . . . Average Backups 9 | 1 5 9 9 11 10 Power . | . . . 1 . 1 Propulsion . | . 1 2 1 1 . Utility 4 | . 1 3 5 5 5 Weapon 3 | . 2 2 2 3 3 Tool/Special . | . . . . . . Unused Backups 9 | . . . . 1 8 Power . | . . . . . . Propulsion 1 | . . . . . 1 Utility 4 | . . . . . 4 Weapon 4 | . . . . 1 3 Tool/Special . | . . . . . . Average Slot Usage (%) 92 | . 100 99 97 99 83 Engine 9 | . 14 1 . 8 11 Core 2 | . . 12 11 2 . Leg 31 | . 28 28 33 33 31 Device 5 | . 14 14 11 . 3 Storage 11 | . 14 14 11 11 11 Processor 6 | . . . . 11 7 Energy Gun 9 | . . 12 19 22 3 Ballistic Gun 11 | . 28 15 11 11 5 Ballistic Cannon 3 | . . . . . 8 Peak Build Rating 47 | 7 7 13 17 20 47 Average Rating 24 | 5 7 11 14 16 40 On Entrance 10 | . 7 7 13 17 20 Avg Prop Armor Cover (%) . | . . . . . . Naked Turns . | . . . . . . Heaviest Build 90 | 12 27 31 33 37 90 Greatest Support 37 | 20 20 27 37 37 37 Greatest Overweight (x) 2 | 1 1 1 . . 2 Average Overweight (x) . | . . 1 . . 1 Largest Inventory Capacity 15 | 8 15 15 15 15 15 Average Capacity 14 | 7 12 15 15 15 15 Most Carried 15 | 3 7 11 10 15 15 Average Carried 10 | 1 5 9 9 11 12 Final Capacity 15 | 8 15 15 15 15 15 Final Carried 15 | 3 6 11 9 15 7 Class Distribution -------------------- 72% | Gunner 14% | Mutant 13% | Scavenger-Mutant Dominant Class ---------------- Mutant | -10/Materials Scavenger-Mutant | -10/Mines Scavenger-Mutant | -9/Materials Gunner | -9/Mines Gunner | -9/Exiles Resources | -11 -10 -10 -9 -9 -9 ----------- Run | Yrd Mat Min Mat Min Exi Matter Collected 646 | 290 70 70 . 99 117 Remotely . | . . . . . . Salvage Created 442 | 83 111 42 . 88 118 Parts 27 | 6 8 3 . 9 1 Haulers Intercepted . | . . . . . . Recyclers Shooed . | . . . . . . Parts Field Recycled . | . . . . . . Retrieved Matter . | . . . . . . Parts Self-Destructed . | . . . . . . Prevented . | . . . . . . Parts Restored . | . . . . . . Kills | -11 -10 -10 -9 -9 -9 ------- Run | Yrd Mat Min Mat Min Exi Combat Hostiles Destroyed 12 | . 2 1 . 7 2 Guns 10 | . 2 1 . 7 . AOE 2 | . . . . . 2 Classes Destroyed 9 | 2 2 . . 3 2 Tunneler 1 | 1 . . . . . Recycler 1 | 1 . . . . . Turret 2 | . . . . . 2 Watcher 1 | . 1 . . . . Swarmer 4 | . . . . 4 . Grunt 3 | . 2 1 . . . Demolisher 2 | . . . . 2 . Zionite 1 | . . . . . 1 Assembled 3 | . . . . 1 2 Best Kill Streak 4 | 2 2 1 . 4 2 Combat Bots Only 4 | . 2 1 . 4 2 Max Kills in Single Turn 3 | 1 1 1 . 3 2 Gunslinging 2 | . . . . 2 . Exploded 2 | . . . . . 2 Melee . | . . . . . . Uniques/NPCs Destroyed 1 | . . . . . 1 8R-AWN (-9/Exiles) Combat | -11 -10 -10 -9 -9 -9 -------- Run | Yrd Mat Min Mat Min Exi Hostile Shots Fired 123 | . 16 13 . 21 73 Missed 24 | . . 5 . 8 11 Hits 99 | . 16 8 . 13 62 Projectile 99 | . 16 8 . 13 62 AOE 5 | . . . . 5 . Critical Strikes 8 | . . 1 . . 7 Damage Taken 1886 | . 174 127 . 263 1322 Core 475 | . 43 29 . 60 343 Absorbed by Shields 31 | . . . . . 31 Core Remaining (%) 85 | 100 . 71 . . . Volleys Fired 44 | 5 10 9 . 8 12 Largest 3 | 2 2 2 . 3 1 Hottest 135 | 40 40 40 . 135 37 Shots Fired 93 | 10 20 17 . 23 23 Gun 81 | 10 20 17 . 23 11 Cannon 9 | . . . . . 9 Launcher 3 | . . . . . 3 Special . | . . . . . . Kinetic 75 | 10 20 17 . 8 20 Thermal 15 | . . . . 15 . Explosive 3 | . . . . . 3 Electromagnetic . | . . . . . . Robot Hit Streak 10 | 4 8 6 . 5 10 Robot Miss Streak 3 | 1 2 1 . 3 1 Penetration Max . | . . . . . . Secondary Targets 4 | . 1 . . 3 . Max Gunslinging Chain 2 | . 1 . . 2 . Autonomous 11 | . . . . . 11 Shots Hit Robots 66 | 7 14 13 . 14 18 Core Hits 45 | 3 5 4 . 15 18 Critical Kills . | . . . . . . Critical Parts Destroyed . | . . . . . . Critical Strikes 4 | . . . . 1 3 Burn 1 | . . . . 1 . Blast 3 | . . . . . 3 Melee Attacks . | . . . . . . Impact . | . . . . . . Slashing . | . . . . . . Piercing . | . . . . . . Sneak Attacks . | . . . . . . Combat Hostiles . | . . . . . . Follow-up Attacks . | . . . . . . Damage Inflicted 1206 | 77 142 125 . 172 690 Guns 688 | 77 142 125 . 172 172 Cannons 219 | . . . . . 219 Explosions 299 | . . . . . 299 Melee . | . . . . . . Ramming . | . . . . . . Kinetic 783 | 77 142 125 . 48 391 Thermal 124 | . . . . 124 . Explosive 299 | . . . . . 299 Electromagnetic . | . . . . . . Impact . | . . . . . . Slashing . | . . . . . . Piercing . | . . . . . . Highest Corruption 2 | . . . . . 2 Average Corruption 1 | . . . . . 1 Corruption Purged . | . . . . . . Corruption Blocked . | . . . . . . Overload Shots . | . . . . . . Overflow Damage 40 | . . . . . 40 Projectiles . | . . . . . . Explosions 40 | . . . . . 40 Melee . | . . . . . . Knockbacks 2 | . . . . . 2 Impact . | . . . . . . Kinetic 2 | . . . . . 2 Secondary . | . . . . . . Self-Inflicted Damage . | . . . . . . Shots . | . . . . . . Rammed . | . . . . . . Targets Rammed . | . . . . . . Kicked . | . . . . . . Crushed . | . . . . . . Highest Temperature 195 | . 24 27 . 195 . Average Temperature 54 | . 12 12 . 80 . Received Heat Transfer 186 | . 96 90 . . . Siege Activations . | . . . . . . Martial Activations . | . . . . . . Shielding Activations . | . . . . . . Robots Disrupted . | . . . . . . Combat Hostiles . | . . . . . . Robots Corrupted . | . . . . . . Combat Hostiles . | . . . . . . Parts Fried . | . . . . . . Impact Corruptions . | . . . . . . Robots Melted . | . . . . . . Combat Hostiles . | . . . . . . Parts Melted . | . . . . . . Heat Transferred 317 | . . . . 317 . Parts Sabotaged . | . . . . . . Parts Stolen . | . . . . . . Parts Stripped . | . . . . . . Power Chain Reactions . | . . . . . . Alert | -11 -10 -10 -9 -9 -9 ------- Run | Yrd Mat Min Mat Min Exi Maximum Alert Level . | . . . . . . Low Security (%) 100 | 100 100 100 100 100 . Level 1 . | . . . . . . Level 2 . | . . . . . . Level 3 . | . . . . . . Level 4 . | . . . . . . Level 5 . | . . . . . . High Security . | . . . . . . Max Security . | . . . . . . Peak Influence 90 | 5 50 30 . 90 . Initial . | . . . . . . Average 10 | . 12 2 . 16 . Influence Increases 243 | 10 63 30 . 140 . Destroy 0b10 Robot/C 180 | . 40 20 . 120 . Destroy 0b10 Robot/NC 15 | 10 5 . . . . Destroy Leader 42 | . 12 10 . 20 . Successful Hack 6 | . 6 . . . . Influence Decreases 243 | 10 63 30 . 140 . Time Decay 227 | 10 47 30 . 140 . Purge Threat 16 | . 16 . . . . Squads Dispatched 2 | . 1 1 . . . Investigation 1 | . . 1 . . . Extermination . | . . . . . . Reinforcement 1 | . 1 . . . . Assault . | . . . . . . Garrison . | . . . . . . Intercept . | . . . . . . Searches Triggered . | . . . . . . Construction Impeded . | . . . . . . Haulers Reinforced . | . . . . . . Active Scanning Responses . | . . . . . . Cargo Convoy Interrupts . | . . . . . . Stealth | -11 -10 -10 -9 -9 -9 --------- Run | Yrd Mat Min Mat Min Exi Distress Signals . | . . . . . . Communications Jammed . | . . . . . . Distress Signals . | . . . . . . Times Spotted 30 | . 5 2 . 11 12 Peak Tracking Total 9 | . 2 1 . 7 9 Tactical Retreats . | . . . . . . Traps | -11 -10 -10 -9 -9 -9 ------- Run | Yrd Mat Min Mat Min Exi Traps Triggered . | . . . . . . Indirectly . | . . . . . . Trap Hack Attempts . | . . . . . . Triggered . | . . . . . . Disarmed . | . . . . . . Reprogrammed . | . . . . . . Reused . | . . . . . . Traps Extracted . | . . . . . . Installed . | . . . . . . Triggered . | . . . . . . Machines | -11 -10 -10 -9 -9 -9 ---------- Run | Yrd Mat Min Mat Min Exi Machines Disabled 5 | . . . . . 5 Max in Single Turn 3 | . . . . . 3 Machines Repaired . | . . . . . . Machines Dismantled . | . . . . . . Machines Sabotaged . | . . . . . . Overloaded Fab Kills . | . . . . . . Hacking | -11 -10 -10 -9 -9 -9 --------- Run | Yrd Mat Min Mat Min Exi Machines Accessed 5 | . 2 1 . 1 1 Terminals 2 | . 2 . . . . Fabricators . | . . . . . . Repair Stations . | . . . . . . Recycling Units . | . . . . . . Scanalyzers . | . . . . . . Garrison Access . | . . . . . . Total Hacks 8 | . 5 1 . 1 1 Successful 5 | . 2 1 . 1 1 Failed 3 | . 3 . . . . Catastrophic . | . . . . . . Database Lockouts . | . . . . . . Manual 5 | . 4 . . . 1 Terminals 5 | . 5 . . . . Fabricators . | . . . . . . Repair Stations . | . . . . . . Recycling Units . | . . . . . . Scanalyzers . | . . . . . . Garrison Access . | . . . . . . Terminal Hacks 5 | . 2 1 . 1 1 Robot Analysis 1 | . 1 . . . . Open Door 2 | . . 1 . 1 . Unreport Threat 1 | . 1 . . . . Proto ID Catalog 1 | . . . . . 1 Fabricator Hacks . | . . . . . . Repair Station Hacks . | . . . . . . Recycling Unit Hacks . | . . . . . . Scanalyzer . | . . . . . . Garrison Access Hacks . | . . . . . . Unauthorized Hacks . | . . . . . . Terminals . | . . . . . . Fabricators . | . . . . . . Repair Stations . | . . . . . . Recycling Units . | . . . . . . Scanalyzers . | . . . . . . Garrison Access . | . . . . . . Data Cores Recovered . | . . . . . . Used . | . . . . . . Hacking Detections 2 | . 2 . . . . Full Trace Events . | . . . . . . Feedback Events . | . . . . . . Feedback Blocked . | . . . . . . Robot Schematics Acquired . | . . . . . . Robots Built . | . . . . . . Authchips . | . . . . . . Time . | . . . . . . Total Robot Build Rating . | . . . . . . Part Schematics Acquired . | . . . . . . Parts Built . | . . . . . . Authchips . | . . . . . . Time . | . . . . . . Total Part Build Rating . | . . . . . . Part Studies Acquired . | . . . . . . Parts Repaired . | . . . . . . Time . | . . . . . . Parts Recycled . | . . . . . . Recycled Matter . | . . . . . . Retrieved Matter . | . . . . . . Retrieved Components . | . . . . . . Parts Scanalyzed . | . . . . . . Part Schematics Acquired . | . . . . . . Parts Damaged . | . . . . . . Bothacking | -11 -10 -10 -9 -9 -9 ------------ Run | Yrd Mat Min Mat Min Exi Used RIF Installer . | . . . . . . Robots Hacked . | . . . . . . Non-combat . | . . . . . . Combat . | . . . . . . Robot Hacks Applied . | . . . . . . Relay Couplers Released . | . . . . . . Fabnet Peak Effective % . | . . . . . . Robots Rewired . | . . . . . . Allies Hacked . | . . . . . . Hacks Repelled . | . . . . . . Allies | -11 -10 -10 -9 -9 -9 -------- Run | Yrd Mat Min Mat Min Exi Total Allies . | . . . . . . Largest Group . | . . . . . . Highest-Rated Group . | . . . . . . Highest-Rated Ally . | . . . . . . Total Orders . | . . . . . . Ally Attacks 21 | . . . . . 21 Total Damage 982 | . . . . . 982 Kills 5 | . . . . . 5 Allies Corrupted . | . . . . . . Allies Melted . | . . . . . . Turrets Deployed 3 | . . . . . 3 Intel | -11 -10 -10 -9 -9 -9 ------- Run | Yrd Mat Min Mat Min Exi Active Infowar (turns) 644 | 23 232 352 37 . . Seismic 644 | 23 232 352 37 . . Robot Analysis Total 1 | . 1 . . . . Derelict Logs Recovered 2 | . . . . 2 . Drone Launches . | . . . . . . Drone Recoveries . | . . . . . . Exploration | -11 -10 -10 -9 -9 -9 ------------- Run | Yrd Mat Min Mat Min Exi Turns Passed 2374 | 83 232 352 39 627 1041 Spaces Moved 1307 | 52 117 161 26 469 482 Core 11 | 11 . . . . . Treads . | . . . . . . Legs 1296 | 41 117 161 26 469 482 Wheels . | . . . . . . Hover . | . . . . . . Flight . | . . . . . . Fastest Speed 50 | 50 120 190 123 123 123 Average Speed 164 | 108 165 193 123 123 203 Slowest Speed 263 | 120 190 195 123 123 263 Overloaded Moves . | . . . . . . Propulsion Burnouts . | . . . . . . Robots Hopped 4 | . . . . . 4 Potential Cave-ins . | . . . . . . Cave-ins Triggered . | . . . . . . Exploration Rate (%) 37 | 3 29 35 6 86 64 Regions Visited 5 Branch Regions 3 Pre-discovered Areas 3 | . . 1 . 2 . Known Exits Taken 2 | . . . 1 1 . Unknown Exits Taken 3 | 1 1 1 . . . Scrap Searched 2 | . . . . 2 . Spaces Dug . | . . . . . . Terrain Destroyed 11 | . . . . . 11 Melee . | . . . . . . Projectile . | . . . . . . AOE 11 | . . . . . 11 Terrain Rammed . | . . . . . . Walls Destroyed . | . . . . . . Machines Disabled . | . . . . . . Actions | -11 -10 -10 -9 -9 -9 --------- Run | Yrd Mat Min Mat Min Exi Total 1451 | 66 137 186 32 501 529 Wait 24 | . 6 7 . 10 1 Move 1296 | 51 116 160 25 468 476 Hop 2 | . . . . . 2 Pick Up 22 | 3 1 4 . 8 6 Fast Attach 14 | 7 . 1 2 . 4 Attach 9 | . . . 2 1 6 Detach . | . . . . . . Swap 14 | . 3 3 1 3 4 Drop 26 | . 1 2 2 3 18 Fire 44 | 5 10 9 . 8 12 Melee . | . . . . . . Ram . | . . . . . . Kick . | . . . . . . Crush . | . . . . . . Escape Stasis . | . . . . . . Rewire . | . . . . . . Trap . | . . . . . . Miscellaneous . | . . . . . . Route ------- -11/Scrapyard -10/Materials (discovered 2 exits: [*Mat] / *Min) -10/Mines -9/Materials -9/Mines (discovered 3 exits: *Mat x2 / *Exi) -9/Exiles History --------- Turn | Location | Event 3 | -11/Scrapyard | Discovered new exit (range 16) 84 | -11/Scrapyard | Entered Materials 245 | -10/Materials | Discovered new exit (range 3) 301 | -10/Materials | Build established: Mutant 307 | -10/Materials | Discovered new exit (range 6) 316 | -10/Materials | Entered Mines 452 | -10/Mines | Met a Derelict shopkeep closing up shop 522 | -10/Mines | Learned location of Storage (-8) 639 | -10/Mines | Build established: Scavenger-Mutant 648 | -10/Mines | Discovered new exit (range 9) 668 | -10/Mines | Entered Materials 668 | -9/Materials | Evolved 2 slots: Propulsion x1, Weapon x1 670 | -9/Materials | Discovered new exit (range 14) 706 | -9/Materials | Identified exit to Mines 707 | -9/Materials | Entered Mines 719 | -9/Mines | Discovered new exit (range 8) 721 | -9/Mines | Assembled infested the area 726 | -9/Mines | Identified exit to Materials 963 | -9/Mines | Build established: Gunner 997 | -9/Mines | Discovered exit to Materials (range 12) 1205 | -9/Mines | Received a Rocket Launcher from a helpful Derelict 1207 | -9/Mines | Learned location of Zion (-6) 1238 | -9/Mines | Met a Derelict who couldn't figure out how to use a Trap Extractor 1328 | -9/Mines | Deemed a non-threat by the Exiles lab entrance 1328 | -9/Mines | Discovered new exit (range 5) 1333 | -9/Mines | Identified exit to Exiles 1334 | -9/Mines | Entered Exiles 1364 | -9/Exiles | Met 8R-AWN 1382 | -9/Exiles | Met EX-HEX 1419 | -9/Exiles | Met EX-BIN 1434 | -9/Exiles | Aligned with FarCom system 1435 | -9/Exiles | Given EX-Vault access code 1464 | -9/Exiles | Opened EX-Vault 1476 | -9/Exiles | Found AWS/Gauss 1485 | -9/Exiles | Found AWS/Autocannon 1500 | -9/Exiles | Found Deploy-a-Sentry 1504 | -9/Exiles | Found Deploy-a-Sentry 1507 | -9/Exiles | Found Deploy-a-Sentry 1566 | -9/Exiles | Warned to stay clear of 0b10 Research branches 1987 | -9/Exiles | DAS Turret deployed 1990 | -9/Exiles | DAS Turret deployed 1992 | -9/Exiles | DAS Turret deployed 1999 | -9/Exiles | Attacked by the Exiles 2026 | -9/Exiles | Allies destroyed 8R-AWN 2280 | -9/Exiles | Core integrity fell below 50% 2290 | -9/Exiles | Core integrity fell below 20% 2375 | -9/Exiles | Destroyed by EX-DEC with AWS/EX-DEC Last Messages --------------- 02043_ Acquired 3 matter. 02062_ Acquired 8 matter. 02220_ The unstable cave ceiling collapses. 02273_ Aluminum Leg destroyed. 02275_ Assault Cannon destroyed. 02281_ Knocked back. 02282_ Slug penetrates DAS Turret. 02283_ Knocked back. 02289_ DAS Turret destroyed. 02310_ Acquired 32 matter. 02363_ Machine disabled. 02365_ Destroyed EX Chip 2. 02365_ Testing Chamber Shield damaged. 02366_ Rocket Launcher destroyed. 02367_ The unstable cave ceiling collapses. 02367_ Slug penetrates D1-RXC(z). 02367_ D1-RXC(z) destroyed. 02369_ Aluminum Leg destroyed. 02370_ W1-DM0 destroyed. 02374_ Dropped AWS/Gauss. Map ----- +----------------------------------------------------+ | ?????????????#" " ? | | ?????????????## | | ??????????????#" " ?? "" | | ??????????????#"""" ""??? ##""" " " | | ??????????????#"" ""#???????####""" | | ??????????????#" """"##??????????###"" | | ??????????????#""" """#?????????????### | | ??????????????## ""##???????????????? | | ???????????????#"" """##????????????????? | | ???????????????##""" ##?????????????????? | | ????????????????##"""" ##??????????????????? | | ?????????????????### #???????????????????? | | ???????????????????##### ##???????????????????? | | ???????????????????????## #????????????????????? | | ????????????????????????#z #????????????????????? | | ????????????????????????# #????????????????????? | | ????????????????????????# #????????????????????? | | ????????????????????????# #????????????????????? | | ????????????????????????# #????????????????????? | | ????????????????????????# #????????????????????? | | ????????????????????????# #????????????????????? | | ????????????????????????# #????????????????????? | | ????????????????????????# #????????????????????? | | ???????????????#?""###### #####????????????????? | | ?????????????""" """" """""""#?????????????? | | ?????????????"" % @ "#?????????????? | | ?????????? z " ??????????? | | ?????????? %! " "??????????? | | ??????????? c " "??????????? | | ??????????? c #""???????????? | | ????????????""" " """""#?????????????? | | ?????????????###" # ###"""######?????????????? | | ???????????????" ""###??? "??????????????????? | | ??????????????""" ""?????? """?????????????????? | | ??????????????" "????????"""""?????????????????? | | ???????????????""?????????? ""???????????????????? | | ?????????????????????????????????????????????????? | | ?????????????????????????????????????????????????? | | ?????????????????????????????????????????????????? | | ?????????????????????????????????????????????????? | | ?????????????????????????????????????????????????? | | ?????????????????????????????????????????????????? | | | | | | | | | | | | | | | | | +----------------------------------------------------+ Best States ------------- Heat Dissipation 54 Energy Generation 16 Energy Capacity 290 Matter Stores 300 Matter Capacity 300 Sight Range 16 Terrain Scan Density 10 Evasion (%) 55 Targeting Accuracy 5 Item Schematics ----------------- None Robot Schematics ------------------ None Fabricated ------------ Nothing Repaired ---------- Nothing Studied --------- None Alien Tech Used ----------------- None Achievements -------------- None Challenges ------------ None Game ------ Seed PiercelightGravitonGuard Manual? 0 Play Time 00:14:10 Cumulative 235.3 hours Start 2026.07.26 @ 16:03:40 End 2026.07.26 @ 16:18:31 Sessions 1 Manual Loads 0 Difficulty Rogue Special Mode None Game No. 317 Rogue 317 Adventurer 0 Explorer 0 Win Type - Total 3 Types 2/0/0/1/0/0/0/0/0/0 Lore% 77 Gallery% 64 Achievement% 52 Wizard Run 0 Options --------- Layout 2 ASCII 0 Keyboard 0 Movement Mouse Keybinds 0 Fullscreen 1 Font 24/Smallcaps Map View 50x44 Zoom Use 0% Tactical HUD 1 Map Filters NONE Filters NONE Steam 1 RUN: e6567c43-2924-4fbc-a721-5de73c8a9d45